bitfinex-derivatives/quotes_ETHF0:USTF0_20250205
["timestamp","ask_amount","ask_price","bid_price","bid_amount"]
[1738798125384,3.2078,2767.5,2767.1,0.5666]
[1738798125584,3.2078,2767.5,2767.2,0.528]
[1738798126487,0.5569179,2767.6,2767.2,0.528]
[1738798126882,0.5569179,2767.6,2766.6,4.57495636]
[1738798126883,3.2078,2767.5,2766.5,3.2078]
[1738798127079,3.2078,2767.5,2766.6,0.5336]
[1738798127286,7.05990636,2767.5,2766.8,3.2078]
[1738798130789,0.5608,2767.4,2766.8,3.2078]
[1738798130990,0.566,2767.3,2766.8,3.2078]
[1738798133187,7.05990636,2767.2,2766.6,0.5336]
[1738798134082,7.78262636,2767.2,2766.5,3.2078]
[1738798134289,7.78270636,2766.9,2766.5,3.2078]
[1738798134489,7.05990636,2766.6,2766.0,3.2078]
[1738798134681,3.85210636,2766.3,2765.9,0.01371]
[1738798134881,3.85210636,2766.0,2765.9,0.01371]
[1738798135887,12.05990636,2766.0,2764.9,3.7613]
[1738798136092,3.85210636,2765.6,2764.9,3.7613]
[1738798136296,0.5393,2765.5,2764.9,3.7613]
[1738798137688,0.5393,2765.5,2764.9,3.2078]
[1738798137894,3.85210636,2765.3,2764.9,3.2078]
[1738798138790,3.2078,2765.4,2764.9,3.2078]
[1738798140590,0.0054179,2765.7,2765.3,3.2078]
[1738798140796,0.0054179,2765.7,2765.6,3.2078]
[1738798141298,7.05990636,2766.8,2765.6,12.94419927]
[1738798141497,7.05990636,2766.8,2766.1,3.2078]
[1738798142202,7.05990636,2766.8,2766.2,0.5443]
[1738798142700,7.06532426,2766.8,2766.2,0.5443]
[1738798142901,3.2132179,2766.8,2766.2,0.5443]
[1738798143397,3.2132179,2766.8,2766.3,4.74422951]
[1738798143603,3.2132179,2766.8,2766.4,3.2078]
[1738798144102,3.2132179,2766.8,2766.5,4.78885211]
[1738798144405,0.5437,2767.7,2766.7,3.2078]
[1738798144596,3.2078,2767.5,2766.7,3.2078]
[1738798144794,3.85210636,2767.4,2766.8,3.2078]
[1738798145405,3.85752426,2767.4,2766.8,3.2132179]
[1738798145706,0.0054179,2767.4,2766.8,3.2132179]
[1738798146399,0.0054179,2767.4,2766.9,4.65993824]
[1738798146610,3.85210636,2767.1,2766.8,0.0054179]
[1738798147197,0.5519,2767.0,2766.8,0.0054179]
[1738798147400,3.2078,2766.9,2766.8,0.0054179]
[1738798147703,3.7742,2766.9,2766.8,0.0054179]
[1738798147899,3.2078,2766.9,2766.8,0.0054179]
[1738798148094,3.2132179,2767.4,2766.8,0.0054179]
[1738798149100,3.2132179,2767.4,2766.9,4.69908582]
[1738798149299,3.2132179,2767.4,2767.0,0.5651]
[1738798149604,0.0054179,2767.4,2767.1,7.90688582]
[1738798150397,1.434,2768.5,2767.1,7.90688582]
[1738798150398,4.39800636,2768.6,2767.4,0.72265]
[1738798150600,3.85210636,2768.9,2767.8,3.2078]
[1738798150805,3.85210636,2768.9,2767.9,0.5659]
[1738798151006,3.85210636,2768.9,2768.1,3.2078]
[1738798151303,3.85210636,2768.9,2768.2,4.6515718]
[1738798151504,0.0054179,2768.8,2768.2,4.6569897]
[1738798151699,0.0054179,2768.8,2768.5,0.04303951]
[1738798152503,0.0054179,2768.8,2768.5,3.25083951]
[1738798152706,0.0054179,2768.8,2768.6,4.84200657]
[1738798153209,0.0054179,2768.8,2768.6,0.04303951]
[1738798153804,0.0054179,2768.8,2768.5,3.2078]
[1738798153805,0.0054179,2768.8,2768.7,0.04303951]
[1738798157799,0.0054179,2768.8,2768.7,0.05189091]
[1738798160208,0.0054179,2768.8,2768.7,3.25969091]
[1738798162906,0.0054179,2768.8,2768.7,0.05189091]
[1738798163101,0.72238,2768.5,2768.2,0.0054179]
[1738798163307,5.5784179,2768.8,2768.2,0.0054179]
[1738798163308,3.2078,2768.3,2768.2,0.0054179]
[1738798163504,3.85210636,2768.7,2768.2,0.0054179]
[1738798163901,3.85210636,2768.4,2768.2,0.0054179]
[1738798166217,8.85210636,2768.4,2767.0,3.7361]
[1738798166405,3.85210636,2767.7,2767.0,3.2078]
[1738798166609,7.05990636,2767.7,2766.4,3.2078]
[1738798166813,0.72269,2767.3,2766.1,4.3336]
[1738798167011,7.78256636,2767.4,2766.1,4.3336]
[1738798167506,0.0054179,2767.0,2766.5,0.0054179]
[1738798169518,0.0054179,2767.0,2766.6,4.74760308]
[1738798169821,0.0054179,2767.0,2766.7,3.2078]
[1738798170418,0.0054179,2767.0,2766.8,4.59222915]
[1738798170821,0.0054179,2767.0,2766.5,3.2132179]
[1738798171913,0.0054179,2767.0,2766.5,0.0054179]
[1738798173017,3.85752426,2767.0,2766.5,0.0054179]
[1738798173818,2.995,2766.9,2766.5,0.0054179]
[1738798174014,3.85210636,2766.7,2766.5,0.0054179]
[1738798174423,0.72287,2766.6,2766.5,0.0054179]
[1738798174718,3.85210636,2766.7,2766.5,0.0054179]
[1738798176914,0.72287,2766.6,2766.5,0.0054179]
[1738798177316,4.57495636,2766.7,2766.5,0.0054179]
[1738798178411,0.72287,2766.6,2766.5,0.0054179]
[1738798178615,0.72321,2765.3,2765.2,0.00694848]
[1738798178807,3.2078,2765.3,2764.3,3.2078]
[1738798179009,3.2078,2765.5,2764.7,3.2078]
[1738798179206,3.2078,2765.2,2764.4,3.2078]
[1738798179408,3.2078,2765.8,2765.1,3.2078]
[1738798179726,0.0054179,2765.7,2765.2,0.0054179]
[1738798181517,0.0054179,2765.7,2765.4,3.2078]
[1738798182918,0.0054179,2765.7,2765.5,5.13344217]
[1738798183119,0.0054179,2765.7,2765.6,0.5676]
[1738798185711,7.05990636,2767.1,2765.7,0.72309]
[1738798185914,7.05990636,2767.1,2766.5,3.2078]
[1738798187017,7.06532426,2767.1,2766.6,0.5519]
[1738798190211,7.06532426,2767.1,2766.5,3.2078]
[1738798191326,7.06532426,2767.1,2766.0,3.7861]
[1738798193223,7.06532426,2767.1,2766.0,0.5783]
[1738798193224,0.7229,2766.5,2766.0,0.5783]
[1738798193421,3.85210636,2766.3,2766.0,0.5783]
[1738798193621,3.85210636,2766.3,2765.9,0.5346]
[1738798193821,3.85210636,2766.3,2765.5,0.5733]
[1738798194021,3.85210636,2766.3,2765.5,1.0964]
[1738798194922,3.85210636,2766.7,2766.0,3.2078]
[1738798195127,1.80651,2767.7,2766.3,3.2078]
[1738798195128,6.2028,2767.0,2766.3,3.2078]
[1738798195326,6.2028,2767.0,2766.4,0.5733]
[1738798197120,6.2028,2767.0,2766.6,3.2078]
[1738798197121,3.2078,2767.0,2766.6,3.2078]
[1738798197633,3.2078,2767.0,2766.7,0.5424]
[1738798198635,3.2078,2767.0,2766.6,3.2078]
[1738798199333,3.758,2767.0,2766.6,3.2078]
[1738798200331,3.2078,2767.0,2766.6,3.2078]
[1738798200732,3.2078,2767.0,2766.7,0.5259]
[1738798201428,3.2078,2767.0,2766.4,0.5733]
[1738798201628,3.758,2767.0,2766.4,0.5733]
[1738798202238,4.48076,2767.0,2766.4,0.5733]
[1738798203033,3.758,2767.0,2766.4,0.5733]
[1738798203237,3.2078,2767.0,2766.4,0.5733]
[1738798203438,3.2078,2767.0,2766.6,3.2078]
[1738798203834,3.2078,2767.0,2766.7,0.5691]
[1738798204137,0.0054179,2767.1,2766.9,3.2078]
[1738798204540,7.62810636,2768.0,2767.0,4.65284643]
[1738798204739,3.2078,2768.0,2767.2,3.2078]
[1738798205139,3.2078,2768.0,2767.3,5.22194643]
[1738798205639,3.85210636,2768.9,2767.9,3.2078]
[1738798205831,0.5355,2769.1,2768.6,3.2078]
[1738798206135,0.0054179,2768.7,2768.3,3.2078]
[1738798206437,0.0054179,2768.7,2767.4,1.9727179]
[1738798206438,7.05990636,2768.6,2767.4,3.2132179]
[1738798206649,3.85210636,2768.3,2767.4,3.2132179]
[1738798207237,0.5355,2768.5,2767.8,3.2078]
[1738798207439,0.5355,2768.5,2767.9,0.5735]
[1738798208433,3.85210636,2768.3,2767.6,0.5358]
[1738798208637,3.85210636,2767.7,2766.6,3.2078]
[1738798208842,0.5349,2767.6,2766.6,3.2078]
[1738798209631,0.5349,2767.6,2766.9,3.2078]
[1738798209837,0.0054179,2767.4,2766.9,3.2078]
[1738798211441,3.2078,2767.0,2766.8,0.0054179]
[1738798211638,0.5455,2766.9,2766.8,0.0054179]
[1738798211839,4.39760636,2766.9,2766.8,0.0054179]
[1738798212442,12.39260636,2766.9,2765.5,3.2078]
[1738798212748,3.85210636,2766.4,2765.5,3.2078]
[1738798213541,6.84710636,2766.4,2765.7,0.0054179]
[1738798213743,3.2078,2766.2,2765.7,0.0054179]
[1738798213952,3.85210636,2766.0,2765.7,0.0054179]
[1738798214541,0.5455,2766.1,2765.7,0.0054179]
[1738798215348,3.85210636,2766.0,2765.7,0.0054179]
[1738798215548,3.2078,2765.8,2765.7,0.0054179]
[1738798216047,3.85210636,2765.2,2764.4,0.5396]
[1738798216843,0.5457,2765.3,2764.8,3.2078]
[1738798217045,0.0054179,2765.1,2764.8,3.2078]
[1738798217349,0.0054179,2765.1,2764.5,3.2078]
[1738798219345,3.85210636,2764.6,2763.3,3.2078]
[1738798219545,6.84710636,2765.0,2763.3,3.2078]
[1738798219546,3.85210636,2764.1,2763.3,3.2078]
[1738798219844,3.2078,2764.2,2763.6,3.2078]
[1738798220051,7.05990636,2764.9,2763.9,3.2078]
[1738798220239,7.05990636,2764.9,2763.8,3.2078]
[1738798220443,7.05990636,2764.9,2763.9,1.0931]
[1738798220642,7.05990636,2764.9,2763.9,5.7530373]
[1738798220846,7.05990636,2764.9,2763.9,1.0931]
[1738798221255,7.05990636,2764.9,2764.3,3.2078]
[1738798221549,3.2078,2764.9,2764.3,3.2078]
[1738798222345,0.0054179,2765.1,2764.3,3.2078]
[1738798222939,3.85210636,2764.9,2763.9,1.0931]
[1738798223542,3.85210636,2764.5,2763.9,1.0931]
[1738798223953,3.85210636,2764.5,2763.9,0.5274]
[1738798224154,0.5632,2764.4,2763.9,0.5274]
[1738798224356,0.5632,2764.4,2763.3,3.2078]
[1738798224357,3.85210636,2764.1,2763.3,3.2078]
[1738798224654,3.771,2764.4,2763.8,3.2078]
[1738798224854,3.771,2764.4,2763.4,4.64765972]
[1738798225049,3.771,2764.4,2763.3,3.2078]
[1738798225258,6.766,2764.4,2763.3,3.2078]
[1738798225452,3.85210636,2764.1,2763.3,3.2078]
[1738798225753,3.85210636,2764.1,2763.1,1.1291]
[1738798225754,3.2078,2763.8,2763.1,1.1291]
[1738798225951,3.2078,2763.8,2763.1,0.5657]
[1738798226149,4.41530636,2763.7,2763.1,0.5657]
[1738798226754,4.42073416,2763.7,2762.8,3.2078]
[1738798226957,3.85210636,2763.3,2762.8,3.2078]
[1738798227351,3.85210636,2763.0,2762.4,3.2078]
[1738798227553,3.85210636,2762.7,2762.4,3.2078]
[1738798227951,3.85210636,2763.0,2762.4,3.2078]
[1738798228260,3.85210636,2763.0,2762.5,5.16170015]
[1738798228649,3.85210636,2763.0,2762.5,0.5391]
[1738798229057,3.85210636,2762.7,2762.4,3.2078]
[1738798229456,3.85210636,2763.0,2762.4,3.2078]
[1738798229654,3.85210636,2762.7,2762.4,3.2078]
[1738798229859,3.2078,2762.9,2762.4,3.2078]
[1738798230956,4.22624484,2763.6,2762.7,3.2078]
[1738798231153,4.22624484,2763.6,2762.8,0.5781]
[1738798231357,4.22624484,2763.6,2762.8,5.29175369]
[1738798231661,4.22624484,2763.2,2762.8,5.29175369]
[1738798231952,4.22624484,2763.2,2762.8,0.5781]
[1738798232159,3.2078,2763.5,2762.8,3.7859]
[1738798232661,3.2078,2763.5,2762.8,3.2078]
[1738798232962,3.93148,2763.5,2762.6,0.5679]
[1738798233361,3.2078,2763.2,2762.6,0.5679]
[1738798233559,3.2078,2763.5,2762.7,4.64250214]
[1738798233766,3.2078,2763.5,2762.8,3.2078]
[1738798233958,0.0054278,2763.7,2763.4,3.2078]
[1738798234360,0.0054278,2763.7,2762.7,0.5467]
[1738798234361,0.0054278,2763.7,2763.0,3.2078]
[1738798234758,0.0054278,2763.7,2763.0,7.96543485]
[1738798235160,0.0054278,2763.7,2763.0,3.2078]
[1738798236464,0.0054278,2763.7,2763.1,4.62481964]
[1738798238054,0.0054278,2763.7,2763.0,3.2078]
[1738798238259,0.0054278,2763.7,2762.7,3.7545]
[1738798238459,4.22624484,2763.6,2762.7,3.7545]
[1738798238658,3.2078,2763.4,2762.7,0.5467]
[1738798238865,3.2078,2763.4,2763.0,3.2078]
[1738798239260,0.0054278,2763.7,2763.0,3.2078]
[1738798240458,8.15772484,2763.6,2762.7,0.5467]
[1738798240855,7.43404484,2763.6,2762.7,0.5467]
[1738798241056,4.22624484,2763.2,2762.6,0.5679]
[1738798241261,0.5356,2763.1,2762.6,0.5679]
[1738798241869,3.2078,2763.3,2762.6,0.5679]
[1738798242166,3.2078,2763.3,2762.8,3.2078]
[1738798242362,3.2078,2763.6,2762.8,3.2078]
[1738798242564,3.2078,2763.6,2762.9,5.29202801]
[1738798244173,3.2078,2763.6,2762.9,0.5336]
[1738798244366,7.43404484,2763.6,2762.9,0.5336]
[1738798245064,7.43404484,2763.6,2762.6,0.5679]
[1738798245261,0.5533,2763.5,2762.6,0.5679]
[1738798245469,0.72378,2763.1,2762.6,0.5679]
[1738798245770,0.539,2763.0,2762.5,3.2078]
[1738798246473,0.539,2763.0,2762.3,3.2078]
[1738798247071,0.539,2763.0,2762.2,0.5629]
[1738798248574,3.7468,2763.0,2762.2,0.5629]
[1738798248968,3.7468,2763.0,2762.4,3.2078]
[1738798249173,0.539,2763.0,2762.4,3.2078]
[1738798250670,4.41414549,2763.0,2762.4,3.2078]
[1738798252978,4.41414549,2763.0,2762.3,0.5642]
[1738798253178,8.34577549,2763.0,2762.3,0.5642]
[1738798253380,3.87514549,2762.6,2762.1,3.2078]
[1738798255577,3.87514549,2762.6,2761.8,3.2078]
[1738798255967,0.0054278,2762.5,2761.8,3.2078]
[1738798256371,0.0054278,2762.5,2762.1,3.2078]
[1738798256568,0.0054278,2762.5,2762.4,3.2078]
[1738798257081,0.0054278,2762.5,2762.4,7.8829615]
[1738798258878,0.0054278,2762.5,2762.2,1.0869]
[1738798259583,0.0054278,2762.5,2762.4,3.2078]
[1738798261282,4.42844549,2763.5,2762.4,12.89911503]
[1738798261481,3.87514549,2763.5,2763.1,3.2078]
[1738798262384,7.60814549,2764.4,2763.4,3.2078]
[1738798262591,0.0054278,2763.6,2763.5,0.5545]
[1738798264186,0.0054278,2763.6,2763.0,0.0054278]
[1738798264492,3.87514549,2763.3,2762.6,3.2078]
[1738798265587,3.2078,2762.8,2762.2,3.2078]
[1738798265787,3.87514549,2762.5,2761.8,1.1011]
[1738798265985,3.87514549,2762.5,2761.9,3.2078]
[1738798269192,7.08294549,2763.1,2762.2,3.2078]
[1738798269394,7.62044549,2763.1,2762.5,3.2078]
[1738798269591,3.7453,2763.1,2762.6,3.2078]
[1738798269792,3.2078,2763.1,2762.6,8.00508185]
[1738798269992,3.2078,2763.1,2762.7,0.5772]
[1738798270489,7.08294549,2763.1,2762.7,0.5262]
[1738798270792,7.08294549,2763.4,2762.7,0.5262]
[1738798271099,7.08294549,2763.4,2762.8,0.5772]
[1738798271796,3.87514549,2763.1,2762.6,3.2078]
[1738798272092,3.87514549,2762.8,2762.6,3.2078]
[1738798272293,3.87514549,2762.8,2762.2,0.5772]
[1738798272294,0.5375,2762.7,2762.2,0.5772]
[1738798274794,3.2078,2763.1,2762.5,3.2078]
[1738798275299,0.5513,2763.3,2762.6,4.62888109]
[1738798275495,3.2078,2763.4,2762.6,4.62888109]
[1738798276800,3.2078,2763.4,2763.0,3.2078]
[1738798277299,3.2078,2763.4,2762.5,3.2078]
[1738798278095,7.08294549,2763.1,2762.2,0.5772]
[1738798278293,0.5509,2763.0,2762.2,0.5772]
[1738798278695,3.2078,2763.4,2762.8,3.2078]
[1738798279198,3.2078,2763.4,2762.9,5.71997657]
[1738798279500,3.2078,2763.4,2762.9,1.0827]
[1738798279700,3.87514549,2763.5,2762.9,1.0827]
[1738798279895,0.5696278,2763.6,2763.1,3.2078]
[1738798280299,0.5696278,2763.6,2762.9,1.0827]
[1738798280696,0.5696278,2763.6,2763.0,4.72421738]
[1738798281091,0.5696278,2763.6,2763.0,7.93201738]
[1738798281495,0.0054278,2763.6,2763.0,7.93201738]
[1738798282404,0.0054278,2763.6,2763.4,3.2078]
[1738798284400,0.0054278,2763.6,2763.5,4.60977836]
[1738798287012,0.0054278,2763.6,2763.4,3.2078]
[1738798288404,0.5680278,2763.6,2762.7,0.5688]
[1738798288605,3.87514549,2763.4,2762.6,3.2078]
[1738798289006,0.5462,2763.3,2762.6,3.2078]
[1738798289202,7.08294549,2763.1,2762.3,3.2078]
[1738798289408,3.87514549,2762.8,2762.3,3.2078]
[1738798289801,0.5668,2762.7,2762.3,3.2078]
[1738798290207,0.5668,2762.7,2762.0,3.2078]
[1738798290411,0.5462,2762.6,2762.0,3.2078]
[1738798290814,0.5462,2762.6,2762.1,4.69786973]
[1738798291410,0.5462,2762.6,2762.0,3.2078]
[1738798291610,0.5344,2763.0,2762.2,4.782261]
[1738798292004,3.7646,2763.1,2762.3,4.3322]
[1738798292201,3.7646,2763.1,2762.3,9.114461]
[1738798292405,3.2078,2763.7,2762.4,3.87514549]
[1738798292610,3.7646,2763.7,2762.7,3.2078]
[1738798293010,3.87514549,2763.4,2762.8,4.60558692]
[1738798293206,3.87514549,2763.4,2762.3,1.6683]
[1738798293207,3.87514549,2763.1,2762.3,1.1244]
[1738798293405,0.5568,2763.0,2762.3,0.5757]
[1738798293609,1.1019,2763.0,2762.3,0.5757]
[1738798293808,1.1019,2763.0,2762.5,3.2078]
[1738798294007,7.08294549,2763.1,2762.3,0.5757]
[1738798294205,3.2078,2763.1,2762.5,3.2078]
[1738798294605,7.08294549,2763.1,2762.5,3.2078]
[1738798294807,7.08294549,2763.1,2762.0,3.7768]
[1738798295009,0.5745,2763.0,2762.0,3.7768]
[1738798295211,0.5745,2763.0,2762.1,7.86475118]
[1738798295419,0.5745,2763.0,2762.5,3.2078]
[1738798295811,3.2078,2763.1,2762.5,3.2078]
[1738798296010,3.2078,2763.1,2762.6,1.1464]
[1738798296214,3.2078,2763.1,2762.6,5.87945799]
[1738798298514,0.547,2763.5,2762.6,5.87945799]
[1738798299117,0.547,2763.5,2762.6,1.1464]
[1738798299313,3.87514549,2763.0,2762.5,3.2078]
[1738798299519,1.0731,2762.9,2762.5,3.2078]
[1738798300020,0.5409,2762.9,2762.5,3.2078]
[1738798300608,0.5409,2762.9,2762.2,3.2078]
[1738798302015,3.2078,2762.4,2761.7,1.1227]
[1738798302221,4.59919549,2762.1,2761.3,3.2078]
[1738798302418,3.87514549,2761.8,2761.3,3.2078]
[1738798302623,7.08294549,2761.8,2760.8,1.0805]
[1738798302817,3.87514549,2761.5,2760.8,1.0805]
[1738798303319,3.87514549,2761.2,2760.5,3.2078]
[1738798303710,3.87514549,2760.9,2759.9,8.50130593]
[1738798303910,0.579,2760.8,2759.9,8.50130593]
[1738798304122,3.87514549,2760.6,2759.9,8.50130593]
[1738798305514,3.87514549,2760.6,2759.7,3.2078]
[1738798305720,3.2078,2760.7,2760.1,3.2078]
[1738798306019,0.5565,2761.6,2760.4,3.2078]
[1738798306213,0.5583,2761.7,2760.6,3.2078]
[1738798306214,3.87514549,2761.5,2760.6,3.2078]
[1738798306419,3.87514549,2761.2,2760.6,3.2078]
[1738798307722,3.87514549,2760.9,2760.2,0.5665]
[1738798308024,3.87514549,2760.9,2760.3,0.5655]
[1738798308217,3.87514549,2760.9,2760.3,0.56983726]
[1738798308418,0.5583,2761.0,2760.6,3.2078]
[1738798309124,0.5583,2761.0,2760.7,40.8]
[1738798309717,0.5583,2761.0,2760.3,3.77763726]
[1738798309923,3.87514549,2760.9,2760.3,3.77763726]
[1738798310325,3.87514549,2760.9,2760.4,40.8]
[1738798310724,3.87514549,2760.6,2760.3,0.00433726]
[1738798312334,3.2078,2760.4,2760.3,0.00433726]
[1738798312823,9.70194266,2760.4,2758.5,3.2078]
[1738798313126,3.87514549,2759.2,2758.5,3.2078]
[1738798313428,0.5625,2759.1,2758.4,3.2078]
[1738798314525,3.87514549,2758.8,2758.4,3.2078]
[1738798315129,3.87514549,2758.8,2758.3,0.535]
[1738798315322,3.87514549,2758.8,2758.1,3.2078]
[1738798315727,4.60006549,2758.8,2758.1,3.2078]
[1738798316026,0.72494,2758.7,2757.9,0.5283]
[1738798316622,0.72494,2758.7,2757.5,44.0078]
[1738798316623,4.24080683,2758.5,2757.5,3.2078]
[1738798316929,4.24080683,2758.1,2757.2,3.2078]
[1738798317225,3.93829784,2758.3,2757.1,3.2078]
[1738798317428,3.21323784,2758.3,2757.1,3.2078]
[1738798317618,3.78393784,2758.3,2757.4,3.2078]
[1738798317820,3.21323784,2758.3,2757.7,3.2078]
[1738798318018,0.00543784,2758.3,2757.8,3.2078]
[1738798318924,0.00543784,2758.3,2757.6,0.5659]
[1738798318925,0.00543784,2758.3,2758.1,3.2078]
[1738798319226,0.5652,2759.5,2758.1,8.2078]
[1738798319423,1.28994,2759.5,2758.2,5.22717236]
[1738798319622,0.5652,2759.5,2758.4,3.2078]
[1738798320117,3.93261,2759.2,2758.5,40.8]
[1738798320317,3.21323784,2759.2,2758.7,0.00543784]
[1738798320524,0.72491,2758.8,2758.7,0.00543784]
[1738798320726,1.455,2758.8,2757.6,0.5659]
[1738798321025,3.2078,2758.0,2757.6,0.5659]
[1738798321726,3.2078,2758.6,2757.9,3.2078]
[1738798322431,3.2078,2758.6,2757.7,0.5735]
[1738798322622,4.24080683,2758.5,2758.3,1.0]
[1738798322820,0.72501,2758.4,2758.3,1.0]
[1738798323019,4.24080683,2758.5,2757.7,0.5735]
[1738798323221,3.93286,2758.3,2757.7,0.5735]
[1738798323430,0.72512,2758.1,2757.2,3.2078]
[1738798323631,3.2078,2758.0,2757.0,1.1087]
[1738798323826,3.2078,2758.0,2756.8,3.2078]
[1738798323827,0.72524,2757.6,2756.8,3.2078]
[1738798324028,0.72524,2757.6,2755.7,4.60400683]
[1738798324029,3.2078,2757.6,2756.3,3.2078]
[1738798324325,3.2078,2757.6,2756.7,3.2078]
[1738798324523,4.24080683,2757.7,2757.0,3.2078]
[1738798324737,0.00543784,2757.8,2757.0,3.2078]
[1738798324930,0.00543784,2757.8,2757.1,1.0886]
[1738798325626,0.00543784,2757.8,2757.4,3.2078]
[1738798327525,0.00543784,2757.8,2757.2,3.2078]
[1738798327724,4.24080683,2757.7,2756.7,3.2078]
[1738798327938,0.00543784,2757.8,2755.1,16.747]
[1738798327939,3.2078,2757.1,2756.3,3.2078]
[1738798328234,0.72538,2757.0,2756.3,3.2078]
[1738798328431,0.72538,2757.1,2757.0,1.0]
[1738798329027,0.72546,2756.8,2755.7,4.3405]
[1738798329229,3.2078,2756.8,2756.0,3.2078]
[1738798329430,3.93315,2757.2,2756.0,3.2078]
[1738798329636,0.72537,2757.1,2756.0,3.2078]
[1738798330136,3.2078,2757.2,2756.3,3.2078]
[1738798330338,3.93306,2757.5,2756.3,3.2078]
[1738798330633,3.2078,2757.5,2756.3,3.2078]
[1738798331033,3.2078,2757.5,2756.4,41.3749]
[1738798331233,3.2078,2757.5,2756.5,0.5377]
[1738798331440,3.2078,2757.5,2756.6,3.2078]
[1738798331637,3.49978484,2757.5,2756.6,3.2078]
[1738798331937,3.49978484,2757.5,2756.5,0.5377]
[1738798332136,4.22504484,2757.5,2756.5,0.5377]
[1738798332433,3.2078,2757.2,2756.5,0.5377]
[1738798332830,3.93314,2757.2,2756.5,0.5377]
[1738798333032,0.5432,2757.1,2756.5,0.5377]
[1738798334237,3.2078,2757.2,2756.7,3.2078]
[1738798335538,3.93315,2757.2,2756.5,0.5377]
[1738798335736,3.2078,2757.2,2756.5,0.5377]
[1738798335933,3.2078,2757.5,2756.9,3.2078]
[1738798336239,3.2078,2757.2,2756.5,0.5377]
[1738798336843,3.89197451,2756.8,2756.5,0.5377]
[1738798337341,3.2078,2756.6,2755.4,4.8953]
[1738798337536,3.89197451,2756.2,2755.4,4.8953]
[1738798338238,3.42641235,2756.5,2755.7,3.2078]
[1738798338439,7.09977451,2756.6,2755.7,3.2078]
[1738798339448,0.00543784,2756.4,2755.9,0.00543784]
[1738798339640,0.00543784,2756.4,2756.2,3.2078]
[1738798340248,7.09977451,2757.0,2756.3,5.2747618]
[1738798340743,7.09977451,2757.0,2756.3,46.0747618]
[1738798340939,3.2078,2757.3,2756.3,46.0747618]
[1738798341142,3.89197451,2758.0,2757.2,3.2078]
[1738798341341,3.89197451,2758.6,2757.7,3.2078]
[1738798341544,3.89197451,2758.6,2758.0,3.2078]
[1738798341740,0.00543784,2758.4,2757.5,3.2078]
[1738798341943,0.00543784,2758.4,2758.0,3.2078]
[1738798342145,0.00543784,2758.4,2758.1,0.5462]
[1738798342346,3.2078,2758.7,2758.1,5.3234393]
[1738798342642,4.23831161,2759.3,2758.3,3.2078]
[1738798342835,0.8748,2760.3,2758.8,3.2078]
[1738798342836,7.44611161,2760.1,2758.8,3.2078]
[1738798343037,7.44611161,2760.1,2758.9,0.5462]
[1738798343246,7.44611161,2760.1,2759.5,3.2078]
[1738798343446,4.6758,2760.4,2759.5,3.2078]
[1738798343642,0.00543784,2760.1,2759.5,3.21323784]
[1738798343949,0.00543784,2760.1,2759.5,0.00543784]
[1738798344243,7.45154945,2760.1,2759.5,0.00543784]
[1738798345944,3.2078,2759.8,2759.5,0.00543784]
[1738798346143,0.72483,2759.1,2757.7,3.2078]
[1738798346342,5.70431161,2759.7,2757.8,0.5802]
[1738798346343,7.44611161,2759.0,2757.8,0.5802]
[1738798346755,3.2078,2758.7,2757.8,0.5802]
[1738798347242,4.23831161,2759.0,2758.3,3.2078]
[1738798347243,0.00543784,2758.5,2758.3,3.2078]
[1738798348248,4.23831161,2759.4,2758.4,4.70356438]
[1738798348440,3.2078,2759.6,2758.4,4.70356438]
[1738798348648,3.2078,2759.6,2758.5,3.2078]
[1738798348853,3.2078,2759.6,2758.4,4.70356438]
[1738798349052,3.2078,2759.6,2758.6,4.64186717]
[1738798349551,0.00543784,2759.4,2758.5,3.2078]
[1738798349750,0.00543784,2759.4,2759.2,3.2078]
[1738798349958,7.44611161,2760.2,2759.2,3.2078]
[1738798350149,3.2078,2760.2,2759.3,4.61734083]
[1738798350451,3.2078,2760.2,2759.4,3.7507]
[1738798350646,3.2078,2760.2,2759.7,3.2078]
[1738798350849,3.2078,2760.2,2759.4,8.38958536]
[1738798351051,3.21323784,2760.2,2759.7,0.00543784]
[1738798351249,7.45154945,2760.2,2759.7,0.00543784]
[1738798351454,4.23831161,2759.8,2758.7,3.2078]
[1738798352660,3.2078,2759.6,2759.0,0.00543784]
[1738798353761,3.2078,2759.3,2759.0,0.00543784]
[1738798354356,0.72495,2758.7,2757.3,3.2078]
[1738798354547,3.2078,2758.2,2757.3,3.2078]
[1738798354753,3.2078,2758.6,2757.7,3.2078]
[1738798354954,3.2078,2758.6,2757.1,3.2078]
[1738798355548,0.00543784,2758.1,2757.6,0.00543784]
[1738798355751,0.00543784,2758.1,2757.8,3.2078]
[1738798356260,0.00543784,2758.1,2757.9,5.84209446]
[1738798356563,3.2078,2758.6,2757.9,5.84209446]
[1738798357357,3.2078,2759.0,2758.2,3.2078]
[1738798357654,0.00543784,2758.5,2758.3,4.78065314]
[1738798357857,3.2078,2759.3,2758.4,3.2078]
[1738798358049,4.23831161,2760.0,2758.9,3.2078]
[1738798358050,3.2078,2759.6,2758.9,3.2078]
[1738798358456,3.2078,2759.6,2759.0,4.78065314]
[1738798359059,3.21323784,2759.6,2759.0,0.00543784]
[1738798359257,0.00543784,2759.6,2759.0,0.00543784]
[1738798359456,0.00543784,2759.6,2759.2,3.2078]
[1738798359859,3.2078,2760.3,2759.5,3.2078]
[1738798360751,3.2078,2760.7,2759.6,7.94624496]
[1738798360957,3.2078,2761.0,2760.4,3.2078]
[1738798361259,3.21323784,2761.0,2760.4,3.2078]
[1738798361459,0.00543784,2761.0,2760.4,3.21323784]
[1738798361856,0.00543784,2761.0,2760.6,3.2078]
[1738798362358,3.2078,2762.0,2760.9,3.2078]
[1738798362557,3.2078,2762.0,2761.4,3.2078]
[1738798363058,4.23831161,2761.8,2761.4,3.2078]
[1738798363262,3.2078,2761.6,2760.6,0.5535]
[1738798363465,3.2078,2761.6,2760.4,3.21323784]
[1738798363466,4.23831161,2761.4,2760.4,3.21323784]
[1738798365053,3.2078,2761.2,2760.4,3.21323784]
[1738798365260,2.04249213,2761.9,2760.4,0.00543784]